Cogmind - Beta 10.2 *** ADVENTURER MODE // 2021.06.06 @ 22:15:17 Player: mumblerit Result: Destroyed by G-34 Mercenary with Small Laser Performance ------------- Evolutions (0) 0 Regions Visited (1) 200 Robots Destroyed (4) 20 Value Destroyed (162) 162 Prototype IDs (0) 0 Alien Tech Used (0) 0 Bonus (0) 0 TOTAL SCORE: 382 Bonus ------- None Cogmind --------- Core Integrity 0/250 Matter 300/300 Energy 100/100 System Corruption 0% Temperature Cool (6) Movement Core (50) Location -10/Materials Parts ------- > --- POWER (1) -------- (None) > --- PROPULSION (2) --- (None) > --- UTILITY (2) ------ (None) > --- WEAPON (2) ------- (None) > --- INVENTORY (4) ---- Aluminum Leg Heat Sink Peak State ------------ > --- POWER ------------ (None) > --- PROPULSION ------- Light Treads Light Treads > --- UTILITY ---------- Heat Sink Improved Heat Sink > --- WEAPON ----------- Assault Rifle > --- INVENTORY -------- Aluminum Leg [Rating: 7] Favorites ----------- Power None Propulsion Light Treads Treads Light Treads Utility Improved Heat Sink Device Improved Heat Sink Weapon Assault Rifle Energy Gun Small Laser Ballistic Gun Assault Rifle Build | -11 -10 ------- Run | Scr Mat Slots Evolved . | . . Power . | . . Propulsion . | . . Utility . | . . Weapon . | . . Parts Attached 6 | 4 2 Power . | . . Engine . | . . Core . | . . Reactor . | . . Propulsion 2 | 2 . Treads 2 | 2 . Leg . | . . Wheel . | . . Hover . | . . Flight . | . . Utility 2 | . 2 Device 2 | . 2 Storage . | . . Processor . | . . Hackware . | . . Protection . | . . Artifact . | . . Weapon 2 | 2 . Energy Gun 1 | 1 . Energy Cannon . | . . Ballistic Gun 1 | 1 . Ballistic Cannon . | . . Launcher . | . . Special Weapon . | . . Impact Weapon . | . . Slashing Weapon . | . . Piercing Weapon . | . . Special Melee Weapon . | . . Unidentified Prototypes . | . . Parts Lost 6 | . 6 Power . | . . Propulsion 2 | . 2 Utility 2 | . 2 Weapon 2 | . 2 Highest Loss Streak 5 | . 5 Average Slot Usage (%) 55 | . 55 Treads 25 | . 25 Device 14 | . 14 Energy Gun 2 | . 2 Ballistic Gun 12 | . 12 Naked Turns 4 | . 4 Heaviest Build 4 | 3 4 Greatest Support 40 | 40 40 Greatest Overweight (x) . | . . Average Overweight (x) . | . . Largest Inventory Capacity 4 | 4 4 Average Capacity 4 | 4 4 Most Carried 3 | 3 3 Average Carried 1 | . 1 Final Capacity 4 | 4 4 Final Carried 2 | 1 2 Class Distribution -------------------- 100% | Mutant Dominant Class ---------------- Mutant | -10/Materials Resources | -11 -10 ----------- Run | Scr Mat Matter Collected 321 | 219 102 Remotely . | . . Salvage Created 177 | . 177 Parts 9 | . 9 Haulers Intercepted . | . . Recyclers Shooed . | . . Parts Field Recycled . | . . Retrieved Matter . | . . Parts Self-Destructed . | . . Prevented . | . . Kills | -11 -10 ------- Run | Scr Mat Combat Hostiles Destroyed 4 | . 4 Guns 4 | . 4 Classes Destroyed 1 | . 1 Grunt 4 | . 4 Best Kill Streak 2 | . 2 Combat Bots Only 2 | . 2 Max Kills in Single Turn 1 | . 1 Gunslinging . | . . Exploded . | . . Melee . | . . Uniques/NPCs Destroyed . | . . Combat | -11 -10 -------- Run | Scr Mat Damage Taken 741 | . 741 Core 255 | . 255 Absorbed by Shields . | . . Core Remaining (%) 100 | 100 . Volleys Fired 22 | . 22 Largest 2 | . 2 Hottest 60 | . 60 Shots Fired 27 | . 27 Gun 27 | . 27 Cannon . | . . Launcher . | . . Special . | . . Kinetic 22 | . 22 Thermal 5 | . 5 Explosive . | . . Electromagnetic . | . . Robot Hit Streak 26 | . 26 Robot Miss Streak . | . . Penetration Max . | . . Secondary Targets . | . . Shots Hit Robots 26 | . 26 Core Hits 10 | . 10 Critical Hits . | . . Critical Kills . | . . Critical Parts Destroyed . | . . Melee Attacks . | . . Impact . | . . Slashing . | . . Piercing . | . . Sneak Attacks . | . . Combat Hostiles . | . . Follow-up Attacks . | . . Damage Inflicted 317 | . 317 Guns 317 | . 317 Cannons . | . . Explosions . | . . Melee . | . . Ramming . | . . Kinetic 263 | . 263 Thermal 54 | . 54 Explosive . | . . Electromagnetic . | . . Impact . | . . Slashing . | . . Piercing . | . . Highest Corruption . | . . Average Corruption . | . . Corruption Purged . | . . Overload Shots . | . . Overflow Damage . | . . Projectiles . | . . Explosions . | . . Melee . | . . Knockbacks . | . . Impact . | . . Kinetic . | . . Secondary . | . . Self-Inflicted Damage . | . . Shots . | . . Rammed . | . . Targets Rammed . | . . Kicked . | . . Crushed . | . . Highest Temperature 15 | . 15 Average Temperature 5 | . 5 Received Heat Transfer 513 | . 513 Siege Activations . | . . Robots Corrupted . | . . Combat Hostiles . | . . Parts Fried . | . . Impact Corruptions . | . . Robots Melted . | . . Combat Hostiles . | . . Parts Melted . | . . Heat Transferred 125 | . 125 Parts Sabotaged . | . . Parts Stolen . | . . Parts Stripped . | . . Power Chain Reactions . | . . Missiles Intercepted . | . . Alert | -11 -10 ------- Run | Scr Mat Peak Influence 120 | . 120 Initial . | . . Average 48 | . 55 Maximum Alert Level . | . . Low Security (%) 100 | 100 100 Level 1 . | . . Level 2 . | . . Level 3 . | . . Level 4 . | . . Level 5 . | . . High Security . | . . Max Security . | . . Squads Dispatched 1 | . 1 Investigation 1 | . 1 Extermination . | . . Reinforcement . | . . Assault . | . . Garrison . | . . Intercept . | . . Construction Impeded . | . . Haulers Reinforced . | . . Stealth | -11 -10 --------- Run | Scr Mat Distress Signals . | . . Communications Jammed . | . . Distress Signals . | . . Times Spotted 9 | . 9 Peak Tracking Total 3 | . 3 Tactical Retreats . | . . Traps | -11 -10 ------- Run | Scr Mat Traps Triggered 2 | . 2 Indirectly . | . . Trap Hack Attempts . | . . Triggered . | . . Disarmed . | . . Reprogrammed . | . . Reused . | . . Traps Extracted . | . . Installed . | . . Triggered . | . . Machines | -11 -10 ---------- Run | Scr Mat Machines Disabled . | . . Max in Single Turn . | . . Machines Sabotaged . | . . Garrisons Compromised . | . . Overloaded Fab Kills . | . . Fab Network Shutdowns . | . . Hacking | -11 -10 --------- Run | Scr Mat Machines Accessed 1 | . 1 Terminals 1 | . 1 Fabricators . | . . Repair Stations . | . . Recycling Units . | . . Scanalyzers . | . . Garrison Access . | . . Total Hacks 1 | . 1 Successful 1 | . 1 Failed . | . . Catastrophic . | . . Database Lockouts . | . . Manual . | . . Terminals 1 | . 1 Fabricators . | . . Repair Stations . | . . Recycling Units . | . . Scanalyzers . | . . Garrison Access . | . . Terminal Hacks 1 | . 1 Record 1 | . 1 Fabricator Hacks . | . . Repair Station Hacks . | . . Recycling Unit Hacks . | . . Scanalyzer . | . . Garrison Access Hacks . | . . Unauthorized Hacks . | . . Terminals . | . . Fabricators . | . . Repair Stations . | . . Recycling Units . | . . Scanalyzers . | . . Garrison Access . | . . Data Cores Recovered . | . . Used . | . . Hacking Detections 1 | . 1 Full Trace Events . | . . Feedback Events . | . . Feedback Blocked . | . . Robot Schematics Acquired . | . . Robots Built . | . . Matter . | . . Time . | . . Total Robot Build Rating . | . . Part Schematics Acquired . | . . Parts Built . | . . Matter . | . . Time . | . . Total Part Build Rating . | . . Parts Repaired . | . . Time . | . . Parts Recycled . | . . Recycled Matter . | . . Retrieved Matter . | . . Retrieved Components . | . . Parts Scanalyzed . | . . Part Schematics Acquired . | . . Parts Damaged . | . . Bothacking | -11 -10 ------------ Run | Scr Mat Used RIF Installer . | . . Robots Hacked . | . . Non-combat . | . . Combat . | . . Robot Hacks Applied . | . . Relay Couplers Released . | . . Robots Rewired . | . . Allies Hacked . | . . Hacks Repelled . | . . Allies | -11 -10 -------- Run | Scr Mat Total Allies . | . . Largest Group . | . . Highest-Rated Group . | . . Highest-Rated Ally . | . . Total Orders . | . . Ally Attacks . | . . Total Damage . | . . Kills . | . . Allies Corrupted . | . . Allies Melted . | . . Intel | -11 -10 ------- Run | Scr Mat Robot Analysis Total . | . . Derelict Logs Recovered . | . . Drone Launches . | . . Drone Recoveries . | . . Exploration | -11 -10 ------------- Run | Scr Mat Turns Passed 523 | 68 455 Spaces Moved 248 | 47 201 Core 14 | 14 . Treads 234 | 33 201 Legs . | . . Wheels . | . . Hover . | . . Flight . | . . Fastest Speed 50 | 50 160 Average Speed 153 | 127 160 Slowest Speed 160 | 160 160 Overloaded Moves . | . . Propulsion Burnouts . | . . Robots Hopped . | . . Cave-ins Triggered . | . . Exploration Rate (%) 20 | 3 37 Regions Visited 1 Branch Regions . Pre-discovered Areas . | . . Known Exits Taken . | . . Unknown Exits Taken 1 | 1 . Scrap Searched . | . . Spaces Dug . | . . Terrain Destroyed . | . . Melee . | . . Projectile . | . . AOE . | . . Terrain Rammed . | . . Walls Destroyed . | . . Machines Disabled . | . . Actions | -11 -10 --------- Run | Scr Mat Total 362 | 55 307 Wait 79 | . 79 Move 247 | 46 201 Hop . | . . Pick Up 8 | 5 3 Fast Attach . | . . Attach 6 | 4 2 Detach . | . . Swap . | . . Drop . | . . Fire 22 | . 22 Melee . | . . Ram . | . . Kick . | . . Crush . | . . Escape Stasis . | . . Rewire . | . . Trap . | . . Miscellaneous . | . . Route ------- -11/Scrapyard -10/Materials (discovered 1 exit: [*Mat]) History --------- Turn | Location | Event 3 | -11/Scrapyard | Discovered new exit (range 15) 69 | -11/Scrapyard | Entered Materials 317 | -10/Materials | Build established: Mutant 444 | -10/Materials | Discovered new exit (range 15) 505 | -10/Materials | Core integrity fell below 50% 517 | -10/Materials | Core integrity fell below 20% 524 | -10/Materials | Destroyed by G-34 Mercenary with Small Laser Last Messages --------------- Triggered Alarm Trap. An alarm sounds. ALERT: Alarm triggered, dispatching investigation squad. K-01 Serf collects debris. U-05 Engineer lays Concrete. Triggered Explosive Trap. An explosion rips through the floor. U-05 Engineer destroyed. K-01 Serf collects debris. EXIT=FOUND K-01 Serf collects debris. U-05 Engineer lays Concrete. K-01 Serf cleans the Fusion Modulator. U-05 Engineer lays Concrete. K-01 Serf collects debris. U-05 Engineer lays Concrete. Assault Rifle destroyed. Lgt. Treads destroyed. Heat Sink destroyed. Imp. Heat Sink destroyed. Map ----- +----------------------------------------------------+ | ?????????????"" # # #???????????????? | | ?????????????"" # # #???????????????? | | ??????????????" # # #???????????????? | | ?????????????? # ###########???????????????? | | ??????????????? ?# #?????????????????????????? | | ??????????????? ?# #?????????????????????????? | | ??????##########+### +?????????????????????????? | | ""????# ## #?????????????????????????? | | """???# ## #?????????????????????????? | | "" ???# ## #?????????????????????????? | | ??# ## ##########???????????????????????? | | ? ??# ## # """ #???????????????????????? | | ###/### ## # "T" #???????????????????????? | | ###+### + #???????????????????????? | | # #???????????????????????? | | # #???????????????????????? | | ^ # """ #???????????????????????? | | ^^ # """ #???????????????????????? | | ######## """ #???????????????????????? | | #??????# #???????????????????????? | | ##?????##########???????????????????????? | | T#??????????????????????????????????????? | | #########?#######????######?????????????? | | #?# ##### ##### #?????? | | #?# u u #?????? | | #?# @ #?????? | | #?# kgg ????? | | #?# ##### ######T#??????? | | ################ #?## ##????##+###?????????????? | | ?????????####### #??# k #????????????????????????? | | ?????????# # #??# #????????????????????????? | | ?????????# """ # #??# #????????????????????????? | | ?????????# """ # #??# #????????????????????????? | | ?????????# """ # #### #????????????????????????? | | ?????????# # """ #????????????????????????? | | ?????????# """ / "T" #????????????????????????? | | ?????????# """ # ! #????????????????????????? | | ?????????# """ #|%= #????????????????????????? | | ?????????# % % #!! #????????????????????????? | | ?????????# # ##???????????????????????? | | ?????????# # T#???????????????????????? | | ?????????# # ^ ##???????????????????????? | | ?????????####### """ #????????????????????????? | | ???????????????# """ #????????????????????????? | | ???????????????# """ ! #????????????????????????? | | ???????????????# #????????????????????????? | | ???????????????# #????????????????????????? | | ???????????????# """ #????????????????????????? | | ???????????????# """ #????????????????????????? | | ???????????????# """ #????????????????????????? | +----------------------------------------------------+ Best States ------------- Heat Dissipation 49 Energy Generation 5 Energy Capacity 100 Matter Stores 300 Matter Capacity 300 Sight Range 16 Terrain Scan Density 10 Resistance: KI 20 Resistance: TH 20 Resistance: EX 20 Resistance: EM 20 Resistance: I 20 Resistance: S 20 Resistance: P 20 Evasion (%) 40 Recoil Reduction 2 Offensive Hacking 10 Item Schematics ----------------- None Robot Schematics ------------------ None Fabricated ------------ Nothing Alien Tech Used ----------------- None Achievements -------------- None Challenges ------------ None Game ------ Seed CompositeVisualLaser Manual? 0 Play Time 00:05:16 Cumulative 3.4 hours Start 2021.06.06 @ 22:10:04 End 2021.06.06 @ 22:15:17 Sessions 1 Manual Loads 0 Difficulty Adventurer Special Mode None Game No. 5 Rogue 1 Adventurer 4 Explorer 0 Win Type - Total 0 Types 0/0/0/0/0/0/0/0/0 Lore% 1 Gallery% 12 Achievement% 9 Wizard Run 0 Options --------- ASCII 0 Keyboard 0 Movement Mouse Keybinds 0 Fullscreen 1 Font 18/Terminus Map View 76x50 Tactical HUD 0 Map Filters NONE Filters NONE Steam 1 RUN: 0123e94d-b1d1-45ca-9b4d-99fba604f6a9